bitfinex-derivatives/quotes_ETHF0:USTF0_20250205
["timestamp","ask_amount","ask_price","bid_price","bid_amount"]
[1738783725868,0.00546378,2748.5,2748.2,3.2078]
[1738783726173,3.2078,2749.2,2748.4,3.9137151]
[1738783726375,3.2078,2749.2,2748.6,3.2078]
[1738783726770,0.5571,2749.6,2748.7,4.70453264]
[1738783726970,0.5571,2749.6,2748.8,0.5333]
[1738783727373,0.52666378,2749.6,2748.8,0.5333]
[1738783727575,0.52666378,2749.6,2748.9,7.91233264]
[1738783727773,0.52666378,2749.6,2749.2,3.2078]
[1738783729684,0.52666378,2749.6,2748.9,40.8]
[1738783730284,0.52666378,2749.6,2748.8,3.7411]
[1738783730677,0.52666378,2749.6,2748.9,4.72352862]
[1738783731679,0.52666378,2749.6,2749.1,3.2078]
[1738783732077,0.00546378,2749.7,2749.1,3.2078]
[1738783732078,0.00546378,2749.7,2749.2,4.80009542]
[1738783736686,3.21326378,2749.7,2749.2,4.80009542]
[1738783736882,3.21326378,2749.7,2749.1,3.2078]
[1738783737083,7.06227831,2749.7,2749.1,3.2078]
[1738783737486,3.94052378,2749.7,2749.1,3.2078]
[1738783737887,3.94051378,2749.7,2749.1,3.2078]
[1738783738187,3.21326378,2749.7,2749.1,3.2078]
[1738783738577,3.94050378,2749.7,2749.1,3.2078]
[1738783739488,3.21326378,2749.7,2749.1,3.2078]
[1738783739708,3.94050378,2749.7,2749.1,3.2078]
[1738783740992,0.72727,2749.6,2749.1,3.2078]
[1738783741289,6.33501831,2749.7,2749.1,3.2078]
[1738783741590,7.06227831,2749.7,2749.1,3.2078]
[1738783742389,0.72726,2749.6,2749.1,3.2078]
[1738783743495,3.12721831,2749.7,2748.5,3.41685221]
[1738783743679,3.2078,2749.6,2749.0,3.2078]
[1738783743992,3.2078,2749.6,2749.1,4.69921607]
[1738783744284,3.2078,2749.6,2749.2,40.8]
[1738783744485,0.00546378,2749.7,2749.3,3.2078]
[1738783744697,0.00546378,2749.7,2749.3,3.7547]
[1738783745393,0.00546378,2749.7,2749.3,0.5469]
[1738783746192,0.00546378,2749.7,2749.3,3.7547]
[1738783746491,0.00546378,2749.7,2749.4,4.61929393]
[1738783746993,0.00546378,2749.7,2749.6,3.2078]
[1738783747384,0.00546378,2749.7,2749.6,8.04155797]
[1738783748685,3.7719,2750.6,2749.6,13.04155797]
[1738783748888,3.2078,2750.6,2750.1,3.2078]
[1738783749088,3.2078,2750.6,2750.2,1.0626]
[1738783749284,3.2078,2750.6,2750.2,5.82742717]
[1738783749485,3.2078,2751.0,2750.4,3.2078]
[1738783749689,0.5513,2751.1,2750.7,3.2078]
[1738783749885,0.00545375,2751.0,2750.7,3.2078]
[1738783750587,0.00545375,2751.0,2750.8,4.63199913]
[1738783751186,0.00545375,2751.0,2750.9,0.5862]
[1738783752190,6.33766459,2752.4,2750.9,13.48848157]
[1738783752385,0.00811006,2752.4,2751.7,3.2078]
[1738783752587,0.00811006,2752.4,2752.0,6.32955453]
[1738783752892,0.00811006,2752.4,2752.2,3.2078]
[1738783753292,3.2078,2755.0,2752.9,3.2078]
[1738783753490,8.99646347,2754.0,2753.9,6.32955453]
[1738783753796,0.89721801,2754.0,2753.9,10.95146501]
[1738783753989,0.60891796,2754.0,2753.9,15.95146501]
[1738783754213,0.00545375,2754.2,2753.9,10.95146501]
[1738783754498,0.00545375,2754.2,2754.0,0.3632]
[1738783754795,0.00545375,2754.2,2753.9,3.76782043]
[1738783754984,0.00545375,2754.2,2754.1,4.62995553]
[1738783755189,0.00545375,2754.2,2753.9,3.76782043]
[1738783755190,0.00545375,2754.2,2754.0,4.62995553]
[1738783755391,0.00545375,2754.2,2753.9,3.2078]
[1738783757089,0.00545375,2754.2,2754.1,3.89748192]
[1738783757296,3.2078,2755.8,2754.1,3.89748192]
[1738783757590,0.551,2756.0,2754.5,7.10528192]
[1738783757591,3.2078,2755.5,2754.5,7.10528192]
[1738783757794,3.2078,2755.8,2755.2,3.2078]
[1738783758695,3.2078,2755.5,2755.1,0.00545375]
[1738783759799,3.2078,2755.5,2754.9,3.2078]
[1738783760694,3.2078,2755.2,2754.6,3.2078]
[1738783760900,3.2078,2755.2,2754.1,3.2078]
[1738783761095,3.2078,2754.8,2754.6,0.00545375]
[1738783761399,3.2078,2755.2,2754.1,3.2078]
[1738783762401,3.2078,2755.2,2754.4,0.00545375]
[1738783764103,3.2078,2754.9,2754.4,0.00545375]
[1738783764518,0.5844,2754.8,2754.4,0.00545375]
[1738783765305,1.1697,2754.7,2754.4,0.00545375]
[1738783768506,1.1697,2754.7,2754.5,3.2078]
[1738783769399,0.5844,2754.8,2754.5,3.2078]
[1738783770608,3.2078,2755.2,2754.5,3.2078]
[1738783771604,3.9336,2755.2,2754.5,3.2078]
[1738783771801,3.2078,2755.2,2754.5,3.2078]
[1738783774929,0.72588,2754.9,2754.5,3.2078]
[1738783775506,0.72593,2754.7,2754.5,3.2078]
[1738783775708,0.5758,2754.6,2754.4,0.00545375]
[1738783776011,1.1598,2754.6,2754.4,0.00545375]
[1738783776714,1.88576,2754.6,2754.4,0.00545375]
[1738783777008,1.1598,2754.6,2754.4,0.00545375]
[1738783777809,1.1598,2754.6,2754.5,0.56737509]
[1738783779114,1.1598,2754.6,2754.5,1.47518]
[1738783779614,2.44185,2754.6,2754.5,1.47518]
[1738783782312,5.64965,2754.6,2754.5,0.59368]
[1738783782712,4.9237,2754.6,2754.5,0.59368]
[1738783782914,3.7836,2754.6,2754.5,0.59368]
[1738783784013,4.50955,2754.6,2754.5,0.59368]
[1738783784809,0.72597,2754.5,2754.4,0.00545375]
[1738783785617,4.50956,2754.6,2754.4,0.00545375]
[1738783785821,3.7836,2754.6,2754.4,0.00545375]
[1738783786018,0.72597,2754.5,2754.4,0.00545375]
[1738783786315,4.50956,2754.6,2754.4,0.00545375]
[1738783787204,3.2078,2754.6,2754.4,0.00545375]
[1738783787409,0.72597,2754.5,2754.4,0.00545375]
[1738783787611,3.93377,2754.6,2754.4,0.00545375]
[1738783787912,0.72597,2754.5,2754.4,0.00545375]
[1738783789617,3.93376,2754.6,2754.4,0.00545375]
[1738783789810,3.2078,2754.6,2754.4,0.00545375]
[1738783790013,0.72597,2754.5,2754.4,0.00545375]
[1738783790318,1.26598,2754.9,2754.4,0.00545375]
[1738783790623,0.7259,2754.8,2754.4,0.00545375]
[1738783791119,0.5401,2754.9,2754.4,0.00545375]
[1738783791418,1.26598,2754.9,2754.4,0.00545375]
[1738783792107,0.5401,2754.9,2754.4,0.00545375]
[1738783792717,0.5401,2754.9,2754.6,3.2078]
[1738783794318,3.2078,2755.1,2754.6,3.2078]
[1738783794517,3.2078,2755.1,2754.7,0.56729919]
[1738783794716,0.5586,2755.4,2754.7,0.56729919]
[1738783794918,1.28434,2755.4,2754.7,1.12189919]
[1738783795122,0.5586,2755.4,2754.7,1.12189919]
[1738783795319,0.5586,2755.4,2754.8,0.56729919]
[1738783795720,1.28433,2755.4,2754.8,0.56729919]
[1738783795922,0.72577,2755.3,2754.9,0.56729919]
[1738783796224,3.2078,2755.1,2754.9,0.56729919]
[1738783796424,3.2078,2755.1,2754.6,3.2078]
[1738783796623,3.93363,2755.1,2754.4,3.11490344]
[1738783796917,0.72587,2755.0,2754.4,3.11490344]
[1738783797118,0.72587,2755.0,2754.5,0.56728405]
[1738783797820,0.72587,2755.0,2754.4,3.11490344]
[1738783798023,1.81443,2755.3,2754.4,3.11490344]
[1738783798224,3.2078,2755.1,2754.4,3.11490344]
[1738783798524,0.7259,2754.8,2754.4,3.11490344]
[1738783798725,0.72594,2754.7,2754.4,0.00545375]
[1738783798921,0.72593,2754.7,2754.4,0.00545375]
[1738783799122,0.548,2754.7,2754.4,0.00545375]
[1738783799922,0.72597,2754.5,2754.4,0.00545375]
[1738783800222,1.0855,2754.7,2754.4,0.00545375]
[1738783800430,3.93377,2754.5,2754.4,0.00545375]
[1738783800719,3.93377,2754.5,2753.8,3.10944969]
[1738783800720,3.2078,2754.5,2753.8,3.10944969]
[1738783800925,0.72601,2754.4,2753.8,3.10944969]
[1738783801136,2.5735,2754.7,2754.1,3.10944969]
[1738783801719,2.57895375,2754.7,2754.1,3.11490344]
[1738783802121,3.2078,2754.4,2754.1,0.00545375]
[1738783802317,3.83549969,2754.2,2753.5,8.51568752]
[1738783802519,3.93392,2754.0,2753.5,8.51568752]
[1738783803024,3.2078,2754.0,2753.5,8.51568752]
[1738783803520,3.2078,2754.0,2753.1,3.2078]
[1738783803521,1.1587,2753.9,2753.1,3.2078]
[1738783803722,1.1587,2753.9,2753.5,0.00545375]
[1738783805723,1.727,2753.9,2753.5,0.00545375]
[1738783805925,3.2078,2754.0,2753.5,0.00545375]
[1738783806320,3.2078,2754.0,2753.5,0.54155375]
[1738783806521,3.2078,2754.0,2753.5,1.11805375]
[1738783808018,3.2078,2754.0,2753.5,0.00545375]
[1738783808422,0.5434,2753.9,2753.5,0.00545375]
[1738783808625,3.2078,2754.0,2753.5,0.00545375]
[1738783808823,0.5434,2754.3,2753.5,0.00545375]
[1738783809227,1.26943,2754.3,2753.5,0.00545375]
[1738783809525,0.5434,2754.3,2753.5,0.00545375]
[1738783809731,0.72608,2754.1,2753.5,0.00545375]
[1738783809921,0.72611,2754.0,2753.5,0.00545375]
[1738783810119,3.2078,2753.8,2753.5,0.00545375]
[1738783810428,0.5328,2753.7,2753.5,0.00545375]
[1738783810930,3.2078,2754.2,2753.5,0.00545375]
[1738783811232,0.5328,2754.1,2753.5,0.00545375]
[1738783811925,0.5328,2754.1,2753.7,3.2078]
[1738783812329,0.5434,2754.3,2753.7,3.2078]
[1738783813026,3.93385,2754.2,2753.5,0.00545375]
[1738783813217,3.93385,2754.2,2753.5,3.21325375]
[1738783813423,3.2078,2754.2,2753.5,3.21325375]
[1738783814630,3.93386,2754.2,2753.5,3.21325375]
[1738783814828,3.2078,2754.2,2753.5,3.21325375]
[1738783816030,0.72614,2753.9,2753.5,0.00545375]
[1738783816331,1.138,2753.8,2753.5,0.00545375]
[1738783816627,4.3458,2753.8,2753.5,0.00545375]
[1738783816834,1.487,2753.7,2752.8,3.2078]
[1738783817031,3.93405,2753.5,2752.8,3.2078]
[1738783817234,0.72628,2753.4,2752.8,3.2078]
[1738783817426,3.2078,2753.5,2752.4,40.8]
[1738783817427,7.10779177,2753.5,2752.4,40.8]
[1738783817633,0.72636,2753.1,2752.4,40.8]
[1738783817827,0.72636,2753.1,2752.0,4.45429177]
[1738783817828,0.5653,2753.0,2752.6,3.2078]
[1738783818034,0.57075375,2753.0,2752.6,3.2078]
[1738783818235,0.57075375,2753.0,2752.3,3.2078]
[1738783818733,0.57075375,2753.0,2752.6,3.2078]
[1738783818934,0.57075375,2753.0,2752.3,3.2078]
[1738783819838,0.57075375,2753.0,2752.6,3.2078]
[1738783820933,1.29713375,2753.0,2752.3,3.2078]
[1738783821132,3.7866,2752.9,2752.3,3.2078]
[1738783821337,0.72645,2752.7,2752.3,3.2078]
[1738783821530,0.572,2752.6,2752.3,3.2078]
[1738783821935,0.7265,2752.5,2751.7,3.2078]
[1738783822146,3.2078,2752.3,2751.7,3.2078]
[1738783822433,0.5626,2752.2,2751.7,3.2078]
[1738783822640,3.7866,2752.9,2752.0,7.10779177]
[1738783822841,0.5788,2752.9,2752.6,3.2078]
[1738783823042,0.00545375,2753.0,2752.6,3.2078]
[1738783824436,0.572,2753.4,2752.6,3.2078]
[1738783824437,1.487,2754.1,2752.9,7.10779177]
[1738783824644,1.487,2754.1,2753.2,3.2078]
[1738783825035,1.487,2754.1,2753.5,3.2078]
[1738783825243,3.89999177,2754.4,2753.8,3.2078]
[1738783825539,1.6712,2754.6,2754.0,3.2078]
[1738783825841,0.00545375,2754.4,2753.9,0.5409]
[1738783828540,3.21325375,2754.4,2753.8,0.00545375]
[1738783828735,0.00545375,2754.4,2753.8,0.00545375]
[1738783829038,0.00545375,2754.4,2754.3,3.2078]
[1738783829535,0.00545375,2754.4,2754.3,7.97860566]
[1738783829842,0.00545375,2754.4,2754.3,3.2078]
[1738783831136,0.00545375,2754.4,2754.0,3.2078]
[1738783831340,0.00545375,2754.4,2753.8,0.00545375]
[1738783834537,0.00545375,2754.4,2754.3,3.2078]
[1738783835049,0.00545375,2754.4,2754.3,10.76531054]
[1738783835345,0.00545375,2754.4,2754.3,51.56531054]
[1738783835849,0.00545375,2754.4,2754.3,44.0078]
[1738783837147,0.00545375,2754.4,2754.3,53.83428613]
[1738783837448,4.24564413,2755.7,2754.4,0.726]
[1738783837743,0.5618,2755.6,2755.1,3.2078]
[1738783838641,0.56725375,2755.6,2755.1,3.2078]
[1738783839243,0.00545375,2755.6,2755.4,3.2078]
[1738783839441,1.6772,2756.8,2755.4,3.2078]
[1738783839746,1.05153239,2758.2,2756.4,3.2078]
[1738783839747,3.2078,2757.4,2756.4,3.2078]
[1738783840344,1.1382,2757.3,2756.4,3.2078]
[1738783840542,0.5811,2757.3,2756.7,3.2078]
[1738783840747,1.05858783,2756.9,2756.7,3.2078]
[1738783840947,1.05858783,2756.9,2756.8,4.81938894]
[1738783841242,3.2078,2758.1,2756.8,12.47855696]
[1738783841451,3.2078,2758.1,2757.6,3.89999177]
[1738783842252,3.21324366,2758.1,2757.6,3.89999177]
[1738783842555,3.21324366,2758.1,2757.5,40.8]
[1738783842556,3.21324366,2758.1,2757.4,3.2078]
[1738783842744,0.5588,2758.0,2757.4,3.2078]
[1738783843252,0.00544366,2758.1,2757.7,3.2078]
[1738783843456,0.00544366,2758.1,2758.0,3.2078]
[1738783844249,0.00544366,2758.1,2758.0,7.99553833]
[1738783844443,1.05153239,2758.2,2758.0,7.99553833]
[1738783845351,0.5723,2759.4,2758.0,7.99553833]
[1738783845352,1.03789761,2759.5,2758.2,0.72498]
[1738783845551,0.5292,2760.1,2759.4,3.2078]
[1738783845748,3.2078,2760.6,2760.0,3.2078]
[1738783845953,3.61916,2762.7,2760.3,3.2078]
[1738783845954,3.2078,2761.8,2760.3,3.2078]
[1738783846257,3.2078,2761.8,2760.2,3.89999177]
[1738783846258,22.05789138,2762.2,2761.3,7.10779177]
[1738783846550,3.2078,2763.3,2762.1,3.89999177]
[1738783846750,3.2078,2763.3,2762.4,7.43100587]
[1738783846949,3.2078,2762.9,2762.4,7.43100587]
[1738783847151,16.6242755,2763.0,2762.7,3.2078]
[1738783847348,14.51998762,2763.0,2762.8,40.8]
[1738783847548,4.22320587,2764.7,2762.4,7.43100587]
[1738783847549,3.2078,2763.5,2762.4,7.43100587]
[1738783847854,4.22320587,2764.7,2762.4,3.2078]
[1738783847855,3.2078,2763.1,2762.4,3.2078]
[1738783848158,3.2078,2763.8,2763.0,4.22320587]
[1738783848459,3.2078,2763.8,2763.1,3.2078]
[1738783848956,1.03572792,2763.6,2763.1,3.2078]
[1738783849549,1.03572792,2763.6,2763.4,3.2078]
[1738783849756,1.03572792,2763.6,2763.5,4.22320587]
[1738783850154,4.24352792,2763.6,2763.5,4.22320587]
[1738783850348,4.24352792,2763.6,2762.4,40.8]
[1738783850349,1.03572792,2763.6,2762.6,3.2078]
[1738783850546,3.2078,2763.2,2762.6,3.2078]
[1738783850748,0.00357776,2763.6,2762.7,4.64592227]
[1738783850947,3.2078,2763.6,2762.9,3.2078]
[1738783851153,3.2078,2764.4,2763.3,3.2078]
[1738783851359,3.2078,2764.0,2763.3,3.2078]
[1738783851551,1.1173,2764.6,2763.6,3.2078]
[1738783851855,1.1173,2764.6,2763.9,3.2078]
[1738783852254,1.1173,2764.6,2764.0,0.00543311]
[1738783852255,3.2078,2764.3,2764.0,0.00543311]
[1738783852560,1.1173,2764.6,2764.1,3.2078]
[1738783853051,1.1173,2764.6,2764.0,0.00543311]
[1738783853052,3.2078,2764.3,2764.0,0.00543311]
[1738783853364,1.1173,2764.6,2764.0,3.21323311]
[1738783854848,1.1173,2764.6,2764.0,0.00543311]
[1738783855057,3.2078,2764.4,2764.0,0.00543311]
[1738783855465,3.2078,2765.5,2764.2,3.2078]
[1738783855757,71.491,2778.9,2764.1,4.81045269]
[1738783855758,3.2078,2772.3,2769.1,3.2078]
[1738783855957,0.06123665,2772.2,2772.1,4.22320587]
[1738783856153,0.06123665,2772.2,2771.4,3.2078]
[1738783856361,0.5813,2772.4,2771.3,3.2078]
[1738783856362,3.2078,2772.1,2771.3,3.2078]
[1738783856660,0.5813,2772.4,2771.9,0.00540823]
[1738783857165,7.3623,2772.4,2771.2,3.2078]
[1738783857363,0.5813,2772.4,2771.5,3.2078]
[1738783857555,0.5813,2772.4,2771.8,3.2078]
[1738783857751,3.2078,2771.9,2771.3,3.2078]
[1738783858259,3.2078,2772.6,2771.4,4.67785812]
[1738783858458,0.00532531,2771.9,2771.6,3.2078]
[1738783858761,0.00532531,2771.9,2771.5,3.2078]
[1738783859356,0.00532531,2771.9,2771.8,3.2078]
[1738783860062,3.2078,2774.6,2772.1,3.2078]
[1738783860363,0.07208506,2774.5,2773.6,3.2078]
[1738783860566,0.07208506,2774.5,2773.9,3.2078]
[1738783860868,5.0388,2774.4,2773.2,3.2078]
[1738783861066,3.2078,2774.0,2773.2,3.2078]
[1738783861260,3.2078,2774.0,2772.3,4.22320587]
[1738783861261,3.2078,2773.9,2773.5,0.00540823]
[1738783861459,0.07208506,2774.5,2773.2,3.2078]
[1738783861660,0.07208506,2774.5,2773.5,3.2078]
[1738783861855,0.07208506,2774.5,2773.8,3.2078]
[1738783862359,8.15177587,2774.4,2773.4,3.2078]
[1738783862561,7.43100587,2774.4,2773.4,3.2078]
[1738783862863,3.2078,2773.6,2773.0,3.2078]
[1738783863160,4.22320587,2773.4,2772.0,3.2078]
[1738783863358,4.22320587,2772.9,2772.0,3.2078]
[1738783863559,4.22320587,2772.4,2771.4,3.2078]
[1738783863761,3.2078,2771.8,2771.1,3.2078]
[1738783863964,5.0508,2771.8,2771.1,3.2078]
[1738783864159,0.00540823,2771.7,2771.2,0.00540823]
[1738783864364,0.00540823,2771.7,2771.5,3.2078]
[1738783864768,5.00540823,2771.7,2771.2,0.00540823]
[1738783864964,0.00540823,2771.7,2771.2,0.00540823]
[1738783865465,3.2078,2771.5,2771.2,0.00540823]
[1738783865666,5.00540823,2771.7,2771.2,0.00540823]
[1738783865865,0.00540823,2771.7,2771.4,3.2078]
[1738783867765,0.00540823,2771.7,2771.5,4.70556578]
[1738783867963,0.00540823,2771.7,2771.4,3.2078]
[1738783869968,5.00540823,2771.7,2771.4,3.2078]
[1738783870363,0.00540823,2771.7,2771.4,3.2078]
[1738783875179,0.00540823,2771.7,2771.5,40.8]
[1738783875481,0.5792,2772.7,2771.5,40.8]
[1738783875672,0.5792,2772.7,2772.5,3.2078]
[1738783876374,5.5792,2772.7,2772.5,3.2078]
[1738783877078,6.30042,2772.7,2772.5,3.2078]
[1738783877280,5.5792,2772.7,2772.0,3.2078]
[1738783877480,0.72134,2772.2,2772.0,3.2078]
[1738783877678,2.55634,2772.2,2772.0,3.2078]
[1738783877874,7.55634,2772.2,2772.0,3.2078]
[1738783878275,0.72136,2772.1,2772.0,3.2078]
[1738783878475,0.72136,2772.1,2771.2,0.00540823]
[1738783878476,0.72149,2771.7,2771.2,0.00540823]
[1738783878776,3.2078,2771.5,2771.2,0.00540823]
[1738783879075,0.72157,2771.3,2771.2,0.00540823]
[1738783879279,0.72172,2770.8,2770.3,3.2078]
[1738783879475,3.92959,2770.5,2769.8,3.2078]
[1738783879675,3.2078,2770.5,2769.5,3.2078]
[1738783879876,3.2078,2770.2,2769.2,44.57195679]
[1738783880079,3.2078,2770.5,2769.5,3.2078]
[1738783880380,3.2078,2770.5,2769.8,3.2078]
[1738783880381,0.72182,2770.4,2769.8,3.2078]
[1738783880573,0.72723823,2770.3,2769.8,3.2078]
[1738783880778,0.00540823,2770.3,2769.8,3.2078]
[1738783880978,0.7219,2770.1,2769.8,3.2078]
[1738783881176,3.92966,2770.2,2769.7,0.00540823]
[1738783881377,3.21320823,2770.3,2769.7,0.00540823]
[1738783881685,0.00540823,2770.3,2770.2,3.2078]
[1738783882377,0.72134,2772.2,2770.2,19.54329392]
[1738783882578,0.72133,2772.3,2771.8,3.2078]
[1738783882775,0.72133,2772.3,2771.3,3.2078]
[1738783882776,0.72144,2771.9,2771.3,3.2078]
[1738783882983,0.72146,2771.8,2771.3,3.2078]
[1738783883384,0.72148,2771.7,2771.3,3.2078]
[1738783883579,0.7215,2771.6,2771.4,0.5639688]
[1738783883786,0.00540823,2771.8,2771.4,0.5639688]
[1738783883787,3.92928,2771.7,2771.4,0.5639688]
[1738783883984,5.00540823,2771.8,2771.4,0.5639688]
[1738783884186,3.92932,2771.5,2771.4,0.5639688]
[1738783884574,0.72154,2771.4,2771.3,0.00540823]
[1738783884774,0.72171,2770.8,2770.3,0.53342905]
[1738783884977,0.72181,2770.4,2770.3,0.53342905]
[1738783885281,3.92957,2770.6,2770.4,2.59509326]
[1738783885478,5.72177,2770.6,2770.4,2.59509326]
[1738783885687,5.72177,2770.6,2770.5,3.12852231]
[1738783885887,0.72177,2770.6,2770.5,3.12852231]
[1738783886181,8.92957,2770.6,2770.5,3.12852231]
[1738783886375,8.2078,2770.6,2769.3,3.2078]
[1738783886579,3.2078,2770.0,2769.3,3.2078]
[1738783886780,0.722,2769.7,2769.3,3.2078]
[1738783887384,3.2078,2770.0,2769.3,3.2078]
[1738783887776,0.72201,2769.6,2769.3,3.2078]
[1738783887983,2.54899,2769.7,2769.3,3.2078]
[1738783888676,0.00540823,2769.8,2769.6,3.2078]
[1738783889080,0.00540823,2769.8,2769.7,40.8]
[1738783890380,0.00540823,2769.8,2769.6,3.2078]
[1738783890989,3.2078,2770.5,2769.6,3.2078]
[1738783891288,3.2078,2770.5,2769.9,3.2078]
[1738783893286,0.00540823,2770.5,2770.2,3.2078]
[1738783893684,1.80458,2770.4,2769.6,3.2078]
[1738783893885,3.2078,2769.9,2769.3,3.2078]
[1738783894085,0.72196,2769.8,2769.3,3.2078]
[1738783894392,0.72203,2769.6,2769.3,3.2078]
[1738783894786,0.72209,2769.3,2769.2,0.00540823]
[1738783895279,5.72209,2769.3,2769.2,0.00540823]
[1738783895482,8.92989,2769.3,2769.2,0.00540823]
[1738783896281,3.2078,2769.3,2769.2,0.00540823]
[1738783896690,3.92989,2769.3,2769.2,0.00540823]
[1738783897094,8.92989,2769.3,2769.2,0.00540823]
[1738783897396,14.22333221,2769.3,2768.0,1.0937]
[1738783897592,0.72238,2768.2,2767.5,3.2078]
[1738783897790,3.2078,2768.9,2768.0,3.2078]
[1738783898195,0.72224,2768.8,2768.0,3.2078]
[1738783898404,1.81,2769.3,2768.0,3.2078]
[1738783898405,3.2078,2768.6,2768.0,3.2078]
[1738783898602,3.2078,2768.2,2768.1,0.0054181]
[1738783900295,0.72228,2768.6,2768.1,0.0054181]
[1738783900691,3.9354881,2768.7,2768.1,0.0054181]
[1738783900892,0.72232,2768.5,2768.1,0.0054181]
[1738783901092,3.2078,2768.4,2768.1,0.0054181]
[1738783901995,0.0054181,2768.7,2768.3,3.2078]
[1738783902192,0.0054181,2768.7,2768.6,3.2078]
[1738783902690,3.2078,2770.0,2768.6,8.93006]
[1738783902892,3.2078,2770.0,2769.5,3.2078]
[1738783903791,0.0054181,2770.0,2769.8,3.2078]
[1738783904303,0.0054181,2770.0,2769.6,0.0054181]
[1738783906198,1.794,2769.9,2769.6,0.0054181]
[1738783906897,0.0054181,2770.0,2769.6,0.0054181]
[1738783907295,0.0054181,2770.0,2769.8,3.2078]
[1738783907698,4.9988,2770.7,2769.8,3.2078]
[1738783907996,0.72178,2770.6,2769.6,0.0054181]
[1738783908198,4.9988,2770.7,2769.6,0.0054181]
[1738783908399,0.72175,2770.6,2769.8,3.2078]
[1738783908603,3.2078,2770.7,2769.8,3.2078]
[1738783908797,0.0054181,2770.5,2769.8,3.2078]
[1738783909600,0.0054181,2770.5,2770.1,3.2078]
[1738783909997,0.0054181,2770.5,2769.6,0.0054181]
[1738783909998,3.2078,2770.4,2769.6,0.0054181]
[1738783910191,3.2078,2770.0,2769.6,0.0054181]
[1738783910594,0.72199,2769.7,2769.6,0.0054181]
[1738783910799,1.786,2769.8,2769.6,0.0054181]
[1738783911897,0.0054181,2770.5,2769.7,3.2078]
[1738783912101,3.2078,2770.4,2769.7,3.2078]
[1738783912608,0.0054181,2770.5,2769.7,3.2078]
[1738783912993,0.0054181,2770.5,2770.3,3.2078]
[1738783915797,0.0054181,2770.5,2770.4,3.2078]
[1738783915998,0.0054181,2770.5,2770.1,3.2078]
[1738783917408,4.9768,2771.9,2770.4,3.2078]
[1738783917600,0.72148,2771.7,2771.1,3.2078]
[1738783917901,4.9818,2771.9,2771.1,3.2078]
[1738783918108,0.72146,2771.8,2771.1,3.2078]
[1738783918307,4.9818,2771.9,2770.5,3.2078]
[1738783918504,0.72162,2771.2,2770.5,3.2078]
[1738783918708,3.2078,2771.5,2770.5,3.2078]
[1738783918905,3.2078,2771.2,2770.6,0.0054181]
[1738783919203,0.72173,2770.7,2770.6,0.0054181]
[1738783919404,3.2078,2770.8,2770.6,0.0054181]
[1738783919609,3.9295,2770.8,2770.6,0.0054181]
[1738783919907,3.2078,2771.2,2770.6,0.0054181]
[1738783920107,0.7217,2770.9,2770.6,0.0054181]
[1738783920308,3.2078,2771.2,2770.6,0.0054181]
[1738783920698,3.2078,2772.1,2771.1,3.2078]
[1738783920914,3.2078,2772.1,2771.6,3.2078]
[1738783921103,3.2078,2772.1,2771.3,3.2078]
[1738783921307,0.28882249,2772.7,2771.3,3.2078]
[1738783921308,3.92926,2771.8,2771.3,3.2078]
[1738783921503,3.2078,2771.8,2771.3,3.2078]
[1738783922612,3.92926,2771.8,2771.3,3.2078]
[1738783923604,3.2078,2771.4,2770.6,0.0054181]
[1738783923909,0.72173,2770.7,2770.6,0.0054181]
[1738783924113,2.48873,2770.7,2770.6,0.0054181]
[1738783924307,7.48873,2770.7,2770.6,0.0054181]
[1738783924507,6.767,2770.7,2770.6,0.0054181]
[1738783924810,7.48873,2770.7,2770.6,0.0054181]
[1738783925002,7.48473,2770.7,2770.6,0.0054181]
[1738783925200,3.2078,2770.9,2770.6,0.0054181]
[1738783925409,3.2078,2771.0,2770.6,0.0054181]
[1738783925607,3.2078,2770.7,2769.5,3.2078]
[1738783925804,3.2078,2770.7,2769.7,3.2078]
[1738783926000,3.2078,2770.2,2769.7,3.2078]
[1738783926206,3.2078,2769.9,2769.0,3.2078]
[1738783926908,0.0054181,2769.7,2769.3,3.2078]
[1738783927509,0.0054181,2769.7,2769.6,3.2078]
[1738783928918,1.759,2770.7,2769.6,8.2078]
[1738783929213,1.759,2770.7,2769.2,0.0054181]
[1738783929214,1.759,2770.7,2770.5,3.2078]
[1738783929806,1.759,2770.7,2770.2,3.2078]
[1738783930314,0.72176,2770.6,2770.2,3.2078]
[1738783930512,1.759,2770.7,2770.2,3.2078]
[1738783930813,0.72177,2770.6,2770.2,3.2078]
[1738783931014,1.759,2770.7,2769.7,3.2078]
[1738783931213,0.72187,2770.2,2769.4,3.2078]
[1738783931614,7.41333221,2770.6,2769.4,3.2078]
[1738783931909,0.72187,2770.2,2769.4,3.2078]
[1738783932108,3.2078,2770.3,2769.4,3.2078]
[1738783932411,3.2078,2772.0,2770.1,0.72186]
[1738783932711,1.771,2772.6,2771.7,3.2078]
[1738783932912,3.2078,2772.4,2771.7,3.2078]
[1738783933309,3.92909,2772.4,2771.7,3.2078]
[1738783933510,0.72138,2772.1,2771.7,3.2078]
[1738783933712,1.77,2772.0,2771.7,3.2078]
[1738783934411,7.4914,2772.0,2771.7,3.2078]
[1738783934612,1.766,2771.9,2771.7,3.2078]
[1738783934810,0.72147,2771.7,2770.8,0.0054181]
[1738783935216,0.72147,2771.7,2771.0,3.2078]
[1738783935217,3.92927,2771.7,2771.0,3.2078]
[1738783935412,3.2078,2771.7,2771.0,3.2078]
[1738783935615,3.92927,2771.7,2771.0,3.2078]
[1738783935812,3.2078,2771.7,2771.0,3.2078]
[1738783936310,0.72151,2771.6,2771.0,3.2078]
[1738783936516,4.46308,2771.7,2771.0,3.2078]
[1738783936717,0.06117309,2771.6,2771.0,3.2078]
[1738783937414,4.92717221,2771.1,2770.2,3.2078]
[1738783937615,4.20553221,2771.1,2770.2,3.2078]
[1738783937810,0.72168,2770.9,2769.9,3.2078]
[1738783938019,1.82218663,2770.8,2769.9,3.2078]
[1738783938218,1.761,2770.8,2769.9,3.2078]
[1738783938811,0.0054181,2770.6,2770.1,0.0054181]
[1738783939616,3.2078,2770.4,2770.1,0.0054181]